[Event "15th Paleochora Open 2022"]
[Site "Paleochora"]
[Date "2022.07.23"]
[Round "8.3"]
[White "Kelires, Andreas"]
[Black "Kourkoulos-Arditis, Stamatis"]
[Result "1-0"]
[ECO "E71"]
[WhiteElo "2528"]
[BlackElo "2535"]
[Annotator "TA"]
[PlyCount "131"]
[EventDate "2022.07.17"]
[EventType "swiss"]
[EventCountry "GRE"]
[SourceTitle "playchess.com"]
[Source "ChessBase"]
[SourceQuality "1"]
[TimeControl "40/5400+30:900+30"]

{[%evp 11,131,32,59,47,39,44,39,19,70,64,80,70,83,68,70,47,35,39,47,35,68,67,80,54,73,70,239,212,239,221,231,183,164,190,179,212,225,172,240,170,242,212,382,375,392,390,365,222,214,207,322,330,325,301,729,701,635,289,286,302,288,307,292,303,299,300,278,128,136,123,114,124,192,212,179,185,188,175,180,31,180,140,124,89,313,313,166,165,330,320,322,315,468,448,5184,5184,5185,5185,5184,5184,5184,5184,5184,5184,5184,5184,5184,5184,5184,5184,5184,5184,5184,5184,5177,5014,5038,4884,4884,4586,852,790]} 1. d4 Nf6 2. c4 g6 3. Nc3 Bg7 4. e4 d6 5. h3 O-O 6. Be3 Na6 7. g4 {E71: King's Indian: 4 e4 d6 5 h3.} c6 8. Nge2 e5 9. d5 {White is slightly better.} Nc5 ({Black should try} 9... cxd5 $11 10. cxd5 Nc5) 10. Ng3 $14 a5 11. Be2 a4 12. Qd2 Qa5 13. f3 cxd5 14. cxd5 Bd7 {[#] Against Nb5} 15. Nb1 $146 ({Predecessor:} 15. Nd1 Rfc8 16. Nf2 Ne8 17. g5 Bf8 18. Ng4 Qxd2+ 19. Kxd2 Be7 20. Rac1 Bd8 21. Rxc5 Rxc5 22. Bxc5 Bxg4 {½-½ (48) Narayanan,S (2564)-Gajwa,A (2267) Ahmedabad 2017}) 15... Qa7 16. Na3 Rfc8 17. Kf1 Ne8 18. Kg2 {White is more active.} h5 $2 (18... Qa5 $14) 19. gxh5 $18 f5 20. exf5 gxf5 21. Bf2 f4 22. Ne4 Nxe4 23. fxe4 b6 24. Kh2 {aiming for Rag1.} Nf6 (24... Qa5 $142 25. Qd3 Qb4) 25. Qd3 Kf7 (25... Kh8 {might work better.} 26. Rhg1 Rg8) 26. Rhg1 (26. Nc4 Rxc4 27. Qxc4 b5 28. Bxa7 bxc4 $15) 26... Rh8 $2 (26... Qa5 27. Qf3 (27. Nc4 Rxc4 28. Qxc4 Rc8 $18) 27... Qd2) 27. Nc4 Bf8 28. Qf3 Be7 29. Rg5 (29. Nxb6 Rag8 30. b4 Be8 $18) (29. Bxb6 Qb7 $16) (29. Qg2 Rag8 30. Qh1 Nxh5 31. Rxg8 Kxg8 32. Rg1+ (32. Bxb6 $2 Qa6 $19) 32... Ng3 $17) 29... Rag8 30. Rag1 {[%cal Ba1g1,Bg1g5,Bg5g7,Bg7c7,Bc7c4][%mdl 32]} (30. Bxb6 Qb8 31. Rxg8 (31. Rag1 Rxg5 32. Rxg5 Bb5 $11) 31... Qxg8 $11) 30... Rxg5 (30... Qb8 $142 31. Rxg8 (31. Nxb6 Rxg5 32. Rxg5 Be8 $18) 31... Rxg8 32. Nxb6 (32. Bxb6 Rh8 $14) 32... Be8) 31. Rxg5 {Hoping for Qg2. Really sharp!} Qc7 32. Qg2 (32. Nxb6 Be8 $16) (32. Bxb6 $6 Qb8 $18) 32... b5 $2 (32... Kf8 33. Bxb6 Qb8) 33. Rg7+ Kf8 {[#]} 34. Qg6 Be8 {Prevents Rf7+.} 35. Qxf6+ Bxf6 36. Rxc7 bxc4 37. Rxc4 Rh7 38. Be1 (38. Rc8 Rb7 $16) 38... Rb7 {[#]} 39. Bb4 (39. Bc3 $1 $18 {is the precise move to win.}) 39... Kg7 $16 40. Ba3 (40. Bxd6 $2 Rxb2 41. Rc7+ Kh6 42. Bf8+ Kg5 $19) 40... Kh6 41. Rc2 ({Wrong is} 41. Bxd6 $2 Rxb2 42. Bf8+ Kg5 $19) 41... Bxh5 (41... Be7 $16 42. Rc8 Bd7) 42. Bxh5 $18 Kxh5 43. Bxd6 $16 {[%mdl 4096] Endgame KRB-KRB} f3 44. Bc5 Bh4 45. Bf2 (45. Kg1 $18) 45... Rb4 (45... Rg7 $1 $14 46. Bb6 Be1) 46. d6 Bxf2 47. Rxf2 {Rd2 is the strong threat.} Rxe4 $2 (47... Rd4 $16 {is a better defense.}) 48. Rxf3 {Threatens to win with Rd3. KR-KR} Rd4 {Inhibits Rd3.} 49. Rf5+ Kh4 $2 (49... Kg6 50. Rxe5 Rxd6) 50. Rxe5 $18 Rd2+ 51. Kg1 Kxh3 (51... a3 {was called for.}) 52. Re4 {White is clearly winning.} Kg3 (52... Rxd6 $142 53. Rxa4 Kg3) 53. Kf1 Rxd6 54. Rxa4 Rd2 55. Rb4 Kf3 56. Ke1 Rh2 57. Kd1 Ke3 58. Kc1 Kd3 59. Rb3+ Kc4 60. Rc3+ Kb4 61. a3+ Ka4 62. Kb1 Rh4 63. Ka2 Kb5 64. Rg3 Ka4 65. b3+ Kb5 66. Rg5+ {Weighted Error Value: White=0.30/Black=0.43} 1-0

[Event "15th Paleochora Open 2022"]
[Site "Paleochora"]
[Date "2022.07.23"]
[Round "8.4"]
[White "Maltsevskaya, Aleksandra"]
[Black "Yilmaz, Mustafa"]
[Result "0-1"]
[ECO "B51"]
[WhiteElo "2378"]
[BlackElo "2634"]
[Annotator "TA"]
[PlyCount "54"]
[EventDate "2022.07.17"]
[EventType "swiss"]
[EventCountry "GRE"]
[SourceTitle "playchess.com"]
[Source "ChessBase"]
[SourceQuality "1"]
[TimeControl "40/5400+30:900+30"]

{[%evp 16,54,25,26,29,37,37,41,30,33,45,21,37,28,39,28,47,25,28,-30,0,0,-5,-41,-33,-33,-36,-133,-130,-243,-236,-706,-705,-699,-697,-674,-663,-29977,-29978,-29994,-29994]} 1. e4 c5 2. Nf3 d6 3. Bb5+ Nc6 4. O-O Bd7 5. Re1 Nf6 6. c3 {[%cal Bc2c3,Bc3d4,Bd4d5][%mdl 32]} a6 7. Bf1 Bg4 8. d4 cxd4 9. cxd4 e5 {B51: Sicilian: Moscow Variation (3 Bb5+) without 3...Bd7.} 10. d5 Nd4 11. Be3 Nxf3+ {White is slightly better.} 12. gxf3 Bc8 {[#]} 13. Kh1 $146 ({Predecessor:} 13. Na3 Be7 14. Nc4 Nd7 15. Qd2 O-O 16. f4 b5 17. Na5 exf4 18. Bxf4 Ne5 19. Bg2 {1-0 (36) Lu,S (2599)-Moiseenko,A (2692) Baku 2015}) 13... Be7 14. Nd2 O-O 15. Nc4 Nd7 {[%cal Bf6d7,Bd7e5,Be5d3,Bd3f2][%mdl 32]} 16. a4 f5 17. f4 ({Better is} 17. exf5 $1 Rxf5 18. Bh3) 17... exf4 (17... fxe4 {is more complex.} 18. fxe5 Nxe5 19. Bb6 Qd7) 18. Bxf4 fxe4 19. Bxd6 Bxd6 20. Nxd6 Ne5 21. Nxc8 {[#]} (21. Nxe4 $15 Qh4 22. Ra3) 21... Qh4 $1 $17 22. Ne7+ {[#]} (22. d6 $2 Nf3 23. Qb3+ Kh8 24. Qxf3 exf3 $19) (22. f3 $17 {is a better defense.} Nxf3 23. Ne7+ Qxe7 24. Re2) 22... Kh8 $1 $19 23. h3 $2 (23. f3 Nxf3 24. Re2) 23... Rxf2 ({Inferior is} 23... Qxe7 24. Rxe4 Qd6 25. Bg2 $11 (25. f4 Ng6 $15)) (23... Nf3 24. Re3 Qxf2 25. Rxf3 exf3 26. Qd3 $17) 24. Re2 Nd3 {( -> ...Qg3)} ({Not} 24... Rxe2 25. Qxe2 Rf8 26. d6 $11) 25. Nf5 {Against Qg3} Rxf5 26. Kg1 Nf2 27. Qd4 Rg5+ {Weighted Error Value: White=0.96/Black=0.03 (flawless)} 0-1

[Event "15th Paleochora Open 2022"]
[Site "Paleochora"]
[Date "2022.07.23"]
[Round "8.5"]
[White "Banikas, Hristos"]
[Black "Kalogeris, Ioannis"]
[Result "1-0"]
[ECO "D53"]
[WhiteElo "2598"]
[BlackElo "2406"]
[Annotator "TA"]
[PlyCount "71"]
[EventDate "2022.07.17"]
[EventType "swiss"]
[EventCountry "GRE"]
[SourceTitle "playchess.com"]
[Source "ChessBase"]
[SourceQuality "1"]
[TimeControl "40/5400+30:900+30"]

{[%evp 13,71,17,18,14,38,43,45,0,8,3,31,20,8,27,14,6,144,134,157,147,203,216,215,184,204,79,70,14,8,0,0,0,73,87,94,4,5,0,0,0,0,0,0,-34,0,0,0,-100,-100,-99,0,-36,82,75,183,39,200,199,456,430]} 1. c4 c6 2. d4 d5 3. Nf3 Nf6 4. Qc2 e6 5. Bg5 Be7 6. e3 Nbd7 7. Nc3 a6 8. a3 {D53: Queen's Gambit Declined: 4 Bg5 Be7: Early deviations.} dxc4 9. Bxc4 b5 10. Ba2 {White is slightly better.} Bb7 11. Rd1 {[#]} Qb6 $146 ({Predecessor:} 11... Rc8 12. Bxf6 Nxf6 13. O-O Nd5 14. Ne4 Qc7 15. Ne5 O-O 16. Bb1 g6 17. h4 Nf6 18. Ba2 a5 19. Ng5 Nd5 {½-½ (19) Leuthner,G (1712)-Weiss,R (1602) Feffernitz 1998}) 12. O-O c5 13. d5 c4 {[%cal Re6d5]} 14. dxe6 Qxe6 (14... fxe6 $11 {keeps the balance.} 15. b3 Qc5 16. Bxf6 Nxf6) 15. Nd4 $1 $16 Qg4 {[%csl Gb7][%cal Rg4g2]} 16. f4 {h3 is the strong threat.} Nc5 (16... O-O $16) 17. h3 $1 $18 ({Don't play} 17. Nf5 Nd3 18. Nxe7 (18. Nxg7+ Kf8 $14) 18... Kxe7 $16) 17... Qc8 (17... Qg3 $2 18. Nf5 Qxg2+ 19. Qxg2 $18) 18. Nf5 Nd3 19. Nxg7+ (19. Rxd3 $18 {has better winning chances.} cxd3 20. Qxd3) 19... Kf8 $16 20. Bh6 (20. Rxd3 $14 cxd3 21. Qb3 $1) 20... Rg8 $1 $132 {[%mdl 2048] Black has counterplay} 21. Ne6+ Ke8 22. Ng5 {aiming for b3.} Rg6 (22... Nc5 $1 $11) 23. Rxd3 $16 {[%cal Od3d2]} Rxh6 24. Rd4 {White is more active.} (24. Rd2 $16) 24... Bc5 $11 25. Nce4 Nxe4 26. Rxe4+ Bxe4 27. Qxe4+ Kf8 28. Qe5 Qc6 {Strongly threatening ...Re8.} (28... Kg8 $5 {[%cal Rc8c6]}) 29. Bb1 Re8 30. Qf5 (30. Qh8+ $11 Ke7 31. Qe5+ Kf8 32. Qh8+ Ke7 33. Qe5+ Kf8) 30... Bxe3+ $17 31. Kh2 {[%csl Gg5][%cal Rf5f7]} f6 ({Better is} 31... Re7 $17 {And now ...Rg6 would win.} 32. Re1 Qc5 33. Nxh7+ Rxh7 $1 34. Qxc5 Bxc5 35. Rxe7 Kxe7 36. Bxh7 Bd4) 32. Rd1 Kg8 (32... Qc8 $15 {stays ahead.} 33. Nxh7+ Ke7 34. Qxc8 (34. Qe4+ Kf7 $17) 34... Bxf4+ 35. g3 Bxg3+ 36. Kxg3 Rxc8) 33. Be4 $1 $16 {The board is on fire.} Qc7 {[#]} (33... Qc8 $16 34. Qd5+ Kh8 35. Nf7+ Kg7) 34. Ne6 ({Not} 34. Bd5+ Kg7 35. Ne6+ Rxe6 36. Qxe6 Qxf4+ 37. Kh1 Rg6 $14) (34. g3 $1 $18 {White threatens Rd7 and mate.} fxg5 35. Rd7 Qxd7 36. Qxd7 Rxe4 37. Qc8+ Kg7 38. Qb7+ Kf8 39. Qxe4 gxf4 40. gxf4) 34... Bxf4+ $2 35. Nxf4 $18 Re5 $2 (35... Qe5) 36. Qg4+ {Weighted Error Value: White=0.30/Black=0.53} 1-0

[Event "15th Paleochora Open 2022"]
[Site "Paleochora"]
[Date "2022.07.23"]
[Round "8.6"]
[White "David, Alberto"]
[Black "Barp, Alberto"]
[Result "1/2-1/2"]
[ECO "E48"]
[WhiteElo "2534"]
[BlackElo "2423"]
[Annotator "TA"]
[PlyCount "84"]
[EventDate "2022.07.17"]
[EventType "swiss"]
[EventCountry "GRE"]
[SourceTitle "playchess.com"]
[Source "ChessBase"]
[SourceQuality "1"]
[TimeControl "40/5400+30:900+30"]

{[%evp 11,84,8,6,-7,-2,-15,10,-9,0,-25,-4,-20,24,22,25,33,25,39,40,43,40,27,61,34,66,47,74,38,31,0,29,0,40,39,38,37,36,31,47,47,37,0,0,0,0,0,0,0,0,0,0,-19,-12,-20,-28,-37,-16,-45,-43,-37,-37,-72,-23,-30,0,0,0,0,0,0,0,0,0,0,0]} 1. d4 Nf6 2. c4 e6 3. Nc3 Bb4 4. e3 O-O 5. Bd3 d5 6. cxd5 exd5 7. a3 {E48: Nimzo-Indian: Rubinstein: 5 Bd3 d5 including 6 Ne2, but excluding 6 a3.} Bd6 8. Qc2 Na6 9. Nge2 c5 {[#]} 10. f3 $146 ({Predecessor:} 10. Bxa6 bxa6 11. dxc5 Bxc5 12. b4 Bd6 13. Bb2 a5 14. b5 a6 15. h3 Bd7 16. bxa6 Rxa6 {0-1 (26) Ding,L (2806)-Radjabov,T (2753) Madrid 2022}) 10... g6 {next ...c4 is good for Black.} 11. Qd2 Nc7 12. dxc5 Bxc5 13. b4 Bd6 14. Bb2 Qe7 15. O-O Bd7 16. Nd4 Rfe8 ({Much less strong is} 16... Qe5 17. f4 Qe7 18. Ndb5 $14) 17. Rfe1 Rad8 ({Less strong is} 17... Qe5 18. f4 Qh5 19. Ncb5 Nxb5 20. Nxb5 Bxb5 21. Bxb5 $16 (21. Bxf6 Bxd3 22. Qxd3 Re6 $14)) 18. Rac1 {White is more active.} a6 (18... Qe5 $2 19. f4 Qh5 20. Ncb5 Nxb5 21. Nxb5 $16) 19. Qf2 (19. f4 $5 {[%cal Re3e4]}) 19... Be5 20. Nce2 Nb5 (20... Bb5 $5 21. Nf4 Bc4 $11) 21. Nf4 Qd6 {[#] White must now prevent ...Nxd4.} 22. Bxb5 Bxb5 23. Nxb5 axb5 24. Bxe5 Rxe5 25. Ne2 Qa6 26. Nd4 Qxa3 27. Qd2 {[#] Ra1 is the strong threat.} Qa6 28. Ra1 Qd6 29. Nxb5 Qb6 30. Qd4 Re6 {[%cal Be5e6,Be6c6,Bc6c4][%mdl 32]} 31. Qd3 Rc6 32. Nd4 Rc4 33. b5 Rdc8 34. Qa3 Re8 35. Kh1 Nd7 36. Rad1 Nf8 (36... Qc5 $17 37. Qa2 Nb6) 37. Qd3 Rc5 38. Ne2 {The position is equal.} Rxb5 39. Nc3 {[%csl LRb5,LRd5]} Rb3 {And now ...Qc6 would win.} 40. Qd2 Rb2 41. Qd3 Rb3 {Threatens to win with ...Qc6.} 42. Qd2 Rb2 {Weighted Error Value: White=0.09 (flawless) /Black=0.12 (very precise)} 1/2-1/2

[Event "15th Paleochora Open 2022"]
[Site "Paleochora"]
[Date "2022.07.23"]
[Round "8.7"]
[White "Khayrullin, Denis"]
[Black "Yilmazyerli, Mert"]
[Result "1/2-1/2"]
[ECO "B90"]
[WhiteElo "2361"]
[BlackElo "2520"]
[Annotator "TA"]
[PlyCount "52"]
[EventDate "2022.07.17"]
[EventType "swiss"]
[EventCountry "GRE"]
[SourceTitle "playchess.com"]
[Source "ChessBase"]
[SourceQuality "1"]
[TimeControl "40/5400+30:900+30"]

{[%evp 17,39,20,16,21,19,25,20,10,13,20,20,12,36,21,23,10,10,10,17,8,33,32,35,35]} 1. e4 c5 2. Nf3 d6 3. d4 cxd4 4. Nxd4 Nf6 5. Nc3 a6 6. f3 e5 7. Nb3 Be6 8. Be3 h5 9. Qd2 Nbd7 {[%cal Bb8d7,Bd7b6,Bb6d5][%mdl 32]} 10. Nd5 {B90: Sicilian Najdorf: Unusual White 6th moves, 6 Be3 Ng4 and 6 Be3 e5.} Bxd5 11. exd5 g6 12. O-O-O {The position is equal.} Nb6 13. Kb1 Nbxd5 14. Bg5 {[#] And now Qxd5 would win.} Be7 $1 {[%cal Bf8e7,Be7f6,Bf6d8][%mdl 32]} 15. g3 {15.g3 has become a bit dusty these days.} (15. Bc4 $5 {[%cal Rc4d5]}) 15... Nb6 16. Bxf6 Bxf6 17. Qxd6 h4 {aiming for ...hxg3.} 18. g4 Qxd6 19. Rxd6 Bd8 20. Rd1 {[#]  Weighted Error Value: White=0.03 (flawless) /Black=0.02 (flawless)} {Predecessor:} O-O $146 21. Nc5 Rb8 22. Be2 Be7 23. Nd7 Nxd7 24. Rxd7 Bg5 25. Rhd1 Rbd8 26. c4 a5 {½-½ (38) Toman,A (2291)-Persson,C (2562) ICCF email 2015} 1/2-1/2

[Event "15th Paleochora Open 2022"]
[Site "Paleochora"]
[Date "2022.07.23"]
[Round "8.8"]
[White "Zwardon, Vojtech"]
[Black "Hristodoulou, Panagiotis"]
[Result "1-0"]
[ECO "D45"]
[WhiteElo "2503"]
[BlackElo "2330"]
[Annotator "TA"]
[PlyCount "85"]
[EventDate "2022.07.17"]
[EventType "swiss"]
[EventCountry "GRE"]
[SourceTitle "playchess.com"]
[Source "ChessBase"]
[SourceQuality "1"]
[TimeControl "40/5400+30:900+30"]

{[%evp 20,85,21,0,0,6,3,0,0,0,0,0,0,0,0,0,0,-16,-15,-23,-13,-22,0,0,0,-76,-33,-75,-84,-69,-84,-95,-100,-171,-171,-134,-123,-205,-197,-208,-152,-143,-131,-129,-77,-134,-74,-74,25,0,141,150,143,125,136,143,138,143,534,515,612,584,599,605,615,563,623,552]} 1. c4 e6 2. Nf3 d5 3. e3 Nf6 4. b3 c6 5. Bb2 Bd6 6. Be2 O-O 7. O-O Nbd7 8. Nc3 b6 9. d4 Bb7 10. Qc2 Qe7 11. Rfd1 Rfd8 {D45: Semi-Slav: 5 e3.} 12. Rac1 Rac8 13. Qb1 a6 {The position is equal.} 14. h3 h6 {[#]} 15. Qa1 $146 ({Predecessor:} 15. Nd2 c5 16. cxd5 exd5 17. Bf3 cxd4 18. exd4 Nf8 19. Na4 Rxc1 20. Rxc1 Ne6 21. Nf1 {½-½ (54) Gritsak,O (2549)-Dreev,A (2654) Legnica 2013}) 15... Bb8 16. a4 {[%cal Ba2a4,Ba4a5][%mdl 32]} c5 17. cxd5 exd5 18. a5 b5 19. dxc5 Nxc5 20. Ba3 Bd6 (20... Nfe4 $5 {[%cal Rd8e8]}) 21. Nd4 {[%cal Oe2b5]} Qe5 {( -> ...Qh2+)} 22. Bf3 {[#]} (22. Nf3 $11 Qe7 23. Nd4) 22... Qh2+ $1 $17 (22... b4 23. Bxb4 Qh2+ 24. Kf1 $11) 23. Kf1 Be5 24. Bxc5 Rxc5 25. Nce2 Rxc1 26. Rxc1 {[#]} (26. Qxc1 $17 Rc8 27. Qd2) 26... Ne4 $1 $19 27. Qb2 {Prevents Nd2+.} b4 {Hoping for ...Rd6.} 28. Ng1 (28. Qc2 $17 {might work better.}) 28... Nc3 29. Be2 Bf6 30. Bd3 Re8 31. Qd2 Bc8 ({Better is} 31... g6 32. f4 Qh1) 32. Nc2 ({White should play} 32. Nde2) 32... Qd6 (32... g6 $142 33. f3 (33. Nxb4 $2 d4 $19) 33... Bg5) 33. Nf3 $17 {[%cal Oc2b4]} Qc5 (33... Bb7 $17) 34. Nfd4 {[%cal Oc2b4] aiming for Nxb4!} (34. Nxb4 $5 Qxb4 35. Nd4 $11) 34... Bd7 {[#]} (34... Qxa5 $11 {remains equal.} 35. Nxb4 Ne4 36. Bxe4 dxe4) 35. Nxb4 $1 $16 {[%mdl 512]} Bxd4 36. exd4 Qxb4 37. Qxc3 Qb8 38. Kg1 {Against Qh2+} ({Reject} 38. Bxa6 $6 Qh2 39. f3 Bxh3 40. gxh3 Qh1+ 41. Kf2 Qh2+ 42. Kf1 Qh1+ 43. Kf2 Qh2+ 44. Kf1 $11) 38... Qf4 $2 {[%mdl 8192] A mistake that costs the game.} (38... Bb5 $16 {is a better chance.} 39. g3 g6) 39. Bxa6 $18 {[%cal Bd3a6,Ba6b7,Bb7d5][%mdl 32] White is clearly winning.} Re6 40. Bb7 Re2 41. Rf1 Ra2 42. Bxd5 {Strongly threatening b4.} Qg5 43. Qf3 {Weighted Error Value: White=0.16 (very precise) /Black=0.45} 1-0

[Event "15th Paleochora Open 2022"]
[Site "Paleochora"]
[Date "2022.07.23"]
[Round "8.9"]
[White "Godzwon, Iwo"]
[Black "Yankelevich, Lev"]
[Result "1/2-1/2"]
[ECO "C77"]
[WhiteElo "2336"]
[BlackElo "2496"]
[Annotator "TA"]
[PlyCount "100"]
[EventDate "2022.07.17"]
[EventType "swiss"]
[EventCountry "GRE"]
[SourceTitle "playchess.com"]
[Source "ChessBase"]
[SourceQuality "1"]
[TimeControl "40/5400+30:900+30"]

{[%evp 16,100,3,0,15,5,25,16,50,48,47,52,52,47,47,51,49,44,71,62,64,37,44,39,41,32,45,0,10,10,8,5,5,5,7,9,31,29,37,19,29,30,23,14,14,14,20,22,27,2,10,11,26,33,40,40,40,40,41,0,0,0,0,0,3,0,0,0,0,0,8,8,8,8,14,14,14,14,14,14,14,14,21,8,10,8,8]} 1. e4 e5 2. Nf3 Nc6 3. Bb5 a6 4. Ba4 Nf6 5. O-O Be7 6. d3 b5 7. Bb3 d6 8. a3 O-O 9. Nc3 Rb8 {C77: Ruy Lopez: 3...a6 4 Ba4 Nf6, unusual lines.} 10. h3 Be6 {10...h6 is setting a new trend.} 11. Nd5 {[#]} Na5 $146 ({Predecessor:} 11... Re8 12. Bd2 Nd7 13. c3 Qc8 14. d4 Na5 15. Bc2 Bxd5 16. exd5 Bf6 17. b3 Nb7 {1-0 (65) Veiga,J (2369)-Fernandes,A (2343) Evora 2021}) 12. Nxf6+ Bxf6 13. Bxe6 fxe6 14. b4 Nc6 15. c3 Qd7 16. a4 a5 17. bxa5 Nxa5 18. axb5 (18. Be3 $5 {[%cal Ra4b5]}) 18... Qxb5 19. Be3 {[#] Threatens to win with c4.} Nc6 20. Qa4 Rfc8 21. d4 Qxa4 22. Rxa4 Ra8 23. Rfa1 Rxa4 24. Rxa4 exd4 25. cxd4 e5 26. d5 Ne7 27. g4 {[#] aiming for g5.} h6 28. h4 Ng6 $1 29. g5 hxg5 30. hxg5 Be7 31. Kg2 Kf7 32. Rc4 Ke8 33. Kg3 Kd7 34. Kg4 Rf8 35. Rc1 Rh8 36. Rg1 Bd8 37. Rg3 Rh1 {The position is equal.} 38. Rg1 Rxg1+ 39. Nxg1 $11 {[%mdl 4096] Endgame KBN-KBN} Ne7 40. Ne2 c6 41. dxc6+ Kxc6 42. f4 exf4 43. Nxf4 g6 44. Bd4 d5 45. exd5+ Nxd5 46. Nxg6 Kd7 47. Nh4 Ke6 48. Nf3 Nf6+ 49. Bxf6 Bxf6 50. gxf6 Kxf6 {Weighted Error Value: White=0.06 (flawless) /Black=0.05 (flawless)} 1/2-1/2

[Event "15th Paleochora Open 2022"]
[Site "Paleochora"]
[Date "2022.07.23"]
[Round "8.10"]
[White "Zakarian, David"]
[Black "Leniart, Arkadiusz"]
[Result "1/2-1/2"]
[ECO "C33"]
[WhiteElo "2300"]
[BlackElo "2473"]
[Annotator "TA"]
[PlyCount "150"]
[EventDate "2022.07.17"]
[EventType "swiss"]
[EventCountry "GRE"]
[SourceTitle "playchess.com"]
[Source "ChessBase"]
[SourceQuality "1"]
[TimeControl "40/5400+30:900+30"]

{[%evp 9,150,-113,-110,-129,-105,-107,-77,-125,-136,-166,-110,-110,-108,-102,-108,-107,-106,-107,-106,-93,-109,-145,-157,-154,-32,-22,43,37,46,37,52,46,46,43,55,42,395,373,367,143,137,148,174,182,205,0,147,147,157,147,170,168,332,172,320,188,190,170,167,113,118,96,108,108,126,108,124,37,93,0,69,0,0,0,0,0,0,0,0,0,0,0,0,0,0,0,0,0,0,0,0,0,0,0,0,0,0,0,0,0,0,0,0,0,0,0,0,0,0,0,0,0,0,0,0,0,0,0,0,0,0,0,0,0,0,0,0,0,0,0,0,0,0,0,0,0,0,0,0,0,0,0,0]} 1. e4 e5 2. f4 exf4 3. Bc4 Nc6 4. d4 Nf6 {[#]} 5. Qd3 $146 ({Predecessor:} 5. Nc3 Bb4 6. Qd3 O-O 7. Nge2 Bxc3+ 8. bxc3 Re8 9. e5 d5 10. Bb5 Ne4 11. Bxf4 Bd7 {0-1 (30) Vlassov,N (2352)-Svidler,P (2723) Chess.com INT 2020}) 5... d5 6. exd5 {C33: King's Gambit Accepted: 3 Nc3 and 3 Bc4.} Nxd5 7. Nf3 Be6 (7... Qe7+ {is more complex.} 8. Kf2 Ne3 9. Bb5 Bf5) 8. a3 {Prevents Ndb4.} (8. O-O $142) 8... g5 $17 {Strongly threatening ...g4.} 9. Bb5 g4 (9... Bg7 $1 $19 10. Nc3 O-O) 10. Ne5 Qh4+ 11. g3 fxg3 12. Qxg3 Qxg3+ 13. hxg3 O-O-O 14. Bxc6 bxc6 15. Nxc6 Re8 {White must now prevent ...Bd7+.} 16. O-O Bd6 (16... h5 $17 {...h4 is the strong threat.} 17. Bg5 Bh6 18. Bxh6 Rxh6) 17. c4 $15 h5 18. cxd5 $14 Bxd5 19. Ne5 h4 $1 20. Nc3 (20. Nxf7 $2 Re2 $1 21. Rf2 hxg3 $1 $19) 20... Bb7 {This bishop pair is nice.} 21. Nxf7 hxg3 {[%csl Gb7][%cal Rh8h1]} 22. Nxh8 g2 $2 {[%mdl 8192] [#]} (22... Bc5 $1 $14 23. dxc5 Rxh8 24. Rf8+ (24. c6 Bxc6 25. Rf8+ Rxf8 $16) 24... Rxf8) 23. Rd1 $1 $18 Bf3 {[#]} 24. Bg5 $2 Rxh8 $16 {[#]} 25. Kf2 Rh5 {[#]} 26. Bd2 Rf5 (26... Rh3 27. Ne2) 27. Rg1 $2 (27. Rdc1 $18) 27... Bh2 {[#]} (27... Bd5+ $11 28. Ke2 Bc4+ 29. Kd1 (29. Ke3 {leads to mate.} Rf3+ 30. Ke4 Bd3+ 31. Kd5 Kd7 32. Rxg2 Rf5#) 29... Bb3+ 30. Ke1 Bg3+ 31. Ke2 Bc4+ 32. Kd1 (32. Ke3 $2 Rf3+ 33. Ke4 Bd3+ 34. Kd5 Kd7 $19) 32... Bb3+ 33. Ke2 Bc4+ 34. Kd1 (34. Ke3 $2 Rf3+ 35. Ke4 Bd3+ 36. Kd5 Kd7 $19) 34... Bb3+ 35. Ke2) 28. Ke3 $1 Rh5 {[#]} 29. Kd3 $1 {Threatens to win with Rgc1.} Rh3 (29... Bxg1 30. Rxg1) 30. Be3 c6 $2 (30... Bxg1 {is a better defense.} 31. Rxg1 a5) 31. Kd2 Kd7 (31... Bxg1 $142 32. Bxg1 (32. Rxg1 a5 $18) 32... Kc7) 32. Ne2 (32. Rgc1 $142) 32... Bxg1 $18 33. Rxg1 Rh1 34. Ke1 (34. Nf4 $18) 34... Ke6 $16 35. b3 a5 36. Kf2 Kd5 37. Nc3+ Ke6 38. Nb1 ({White should play} 38. Bf4 $16) 38... Bd5 ({Black should try} 38... Kf5 $14) 39. Nd2 Kf5 40. b4 (40. a4 $1 $14) 40... axb4 $11 {The position is equal.} 41. axb4 Rh3 42. Re1 g3+ 43. Ke2 Kg4 44. Bg1 Rh1 45. Ke3 Rh7 {Hoping for ...Re7+.} 46. Ra1 Re7+ 47. Kd3 Kh3 48. Be3 Kh2 {[%cal Oe7e3]} 49. Bg1+ Kh3 50. Be3 Rf7 {[%cal Of7f2]} 51. Ke2 {Inhibits Rf2+.} Kh2 {And now ...Re7 would win.} 52. Bg1+ Kh3 53. Be3 Kg4 54. Bg1 Rb7 55. Rb1 Re7+ 56. Be3 Rb7 57. Bg1 Re7+ 58. Be3 Bf7 59. Rc1 Kh3 60. Kd3 Bg6+ 61. Ke2 Bh5+ 62. Kd3 $1 Bg6+ 63. Ke2 Bf5 64. Ra1 Bg4+ 65. Kd3 $1 Bf5+ 66. Ke2 Re8 67. Rc1 Bc8 68. Ra1 Bd7 69. Rc1 Bg4+ 70. Kd3 $1 Bf5+ 71. Ke2 Bc8 72. Ra1 Bg4+ 73. Kd3 $1 Bf5+ 74. Ke2 Rb8 75. Rc1 Re8 {Black defended with fortune.  Weighted Error Value: White=0.25 (precise) /Black=0.26 (precise)} 1/2-1/2